fUST/lending_fUST_20251119
["ID","MTS","AMOUNT","RATE_DAILY","PERIOD"]
[394363320,1763496638024,-500.0,0.00017419,2]
[394363321,1763496638034,-500.0,0.00017419,2]
[394363322,1763496638043,-500.0,0.00017428,2]
[394363323,1763496638053,-500.0,0.00017428,2]
[394363324,1763496638063,-279.58756699,0.00017429,2]
[394363325,1763496638072,-500.0,0.00017473,2]
[394363326,1763496638082,-500.0,0.00017473,2]
[394363327,1763496638092,-500.0,0.00017473,2]
[394363328,1763496638102,-500.0,0.00017473,2]
[394363329,1763496638111,-162.30300803,0.00017473,2]
[394363330,1763496638120,-161.0459602,0.00017473,2]
[394363331,1763496638129,-500.0,0.00017473,2]
[394363332,1763496638139,-503.81513739,0.00017473,2]
[394363333,1763496638148,-500.0,0.00017473,2]
[394363334,1763496638158,-500.0,0.00017473,2]
[394363335,1763496638167,-533.06601794,0.00017473,2]
[394363336,1763496638177,-500.0,0.00017473,2]
[394363337,1763496638186,-215.97941011,0.00017473,2]
[394363338,1763496638195,-500.0,0.00017473,2]
[394363339,1763496638204,-500.0,0.00017473,2]
[394363340,1763496638213,-506.45381358,0.00017473,2]
[394363341,1763496638223,-508.76188657,0.00017473,2]
[394363342,1763496638232,-500.0,0.00017473,2]
[394363343,1763496638242,-500.0,0.00017534,2]
[394363344,1763496638252,-500.0,0.00017534,2]
[394363345,1763496638262,-500.0,0.00017535,2]
[394363346,1763496638271,-600.0,0.00017539,2]
[394363347,1763496638281,-696.38,0.00017603,2]
[394363348,1763496638290,-8793.47901353,0.00017619,2]
[394363349,1763496638300,-599.26546367,0.00017661,2]
[394363350,1763496638309,-240.39540507,0.00017661,2]
[394363351,1763496638319,-251.12088441,0.00017661,2]
[394363352,1763496638328,-452.01759193,0.00017661,2]
[394363353,1763496638338,-1078.67783461,0.00017661,2]
[394363354,1763496638348,-961.58162028,0.00017661,2]
[394363355,1763496638358,-500.0,0.00017662,2]
[394363356,1763496638370,-500.0,0.00017662,2]
[394363357,1763496638380,-500.0,0.00017689,2]
[394363358,1763496638390,-500.0,0.00017689,2]
[394363359,1763496638399,-207.95877341,0.00017693,2]
[394363360,1763496638409,-156.83775476,0.00017693,2]
[394363361,1763496638418,-151.0,0.000177,2]
[394363362,1763496638427,-151.0,0.000177,2]
[394363363,1763496638438,-500.0,0.00017702,2]
[394363364,1763496638447,-23549.21526247,0.00017703,2]
[394363365,1763496638457,-151.0,0.00017704,2]
[394363366,1763496638466,-500.0,0.00017717,2]
[394363367,1763496638475,-500.0,0.00017717,2]
[394363368,1763496638484,-500.0,0.00017744,2]
[394363369,1763496638494,-500.0,0.00017744,2]
[394363370,1763496638503,-383.0,0.00017772,2]
[394363371,1763496638512,-500.0,0.00017772,2]
[394363372,1763496638522,-392.70515437,0.00017773,2]
[394363373,1763496638531,-500.0,0.00017799,2]
[394363374,1763496638541,-151.0,0.000178,2]
[394363375,1763496638550,-151.0,0.000178,2]
[394363376,1763496638559,-500.0,0.00017826,2]
[394363377,1763496638569,-500.0,0.00017854,2]
[394363378,1763496638578,-642.0,0.00017881,2]
[394363379,1763496638588,-300.0,0.00017888,2]
[394363380,1763496638598,-300.0,0.00017888,2]
[394363381,1763496638607,-300.0,0.00017888,2]
[394363382,1763496638617,-300.0,0.00017888,2]
[394363383,1763496638627,-300.0,0.00017888,2]
[394363384,1763496638637,-300.0,0.00017888,2]
[394363385,1763496638647,-300.0,0.00017888,2]
[394363386,1763496638657,-300.0,0.00017888,2]
[394363387,1763496638666,-300.0,0.00017888,2]
[394363388,1763496638676,-300.0,0.00017888,2]
[394363389,1763496638685,-300.0,0.00017888,2]
[394363390,1763496638696,-300.0,0.00017888,2]
[394363391,1763496638706,-300.0,0.00017888,2]
[394363392,1763496638717,-300.0,0.00017888,2]
[394363393,1763496638726,-300.0,0.00017888,2]
[394363394,1763496638736,-600.0,0.00017888,2]
[394363395,1763496638745,-151.0,0.000179,2]
[394363396,1763496638755,-151.0,0.000179,2]
[394363397,1763496638764,-160.0,0.00017927,2]
[394363398,1763496638773,-217.15233878,0.00017967,2]
[394363399,1763496638782,-216.81282294,0.00017973,2]
[394363400,1763496638792,-500.0,0.00017973,2]
[394363401,1763496638801,-424.6086753,0.00017973,2]
[394363402,1763496638810,-500.0,0.00017973,2]
[394363403,1763496638820,-500.0,0.00017973,2]
[394363404,1763496638829,-501.81896579,0.00017973,2]
[394363405,1763496638838,-500.0,0.00017973,2]
[394363406,1763496638848,-500.0,0.00017973,2]
[394363407,1763496638859,-500.0,0.00017973,2]
[394363408,1763496638868,-182.94057288,0.00017973,2]
[394363409,1763496638878,-500.0,0.00017973,2]
[394363410,1763496638888,-500.0,0.00017973,2]
[394363411,1763496638898,-500.0,0.00017973,2]
[394363412,1763496638908,-500.65944619,0.00017973,2]
[394363413,1763496638917,-302.46146869,0.00017973,2]
[394363414,1763496638927,-500.0,0.00017973,2]
[394363415,1763496638937,-500.0,0.00017973,2]
[394363416,1763496638947,-500.0,0.00017973,2]
[394363417,1763496638957,-500.0,0.00017973,2]
[394363418,1763496638967,-500.0,0.00017973,2]
[394363419,1763496638978,-500.0,0.00017973,2]
[394363420,1763496638988,-500.0,0.00017973,2]
[394363421,1763496638997,-515.06662059,0.00017973,2]
[394363422,1763496639007,-500.0,0.00017973,2]
[394363423,1763496639017,-534.12852606,0.00017973,2]
[394363424,1763496639027,-500.0,0.00017973,2]
[394363425,1763496639036,-500.0,0.00017973,2]
[394363426,1763496639045,-500.0,0.00017973,2]
[394363427,1763496639055,-500.0,0.00017973,2]
[394363428,1763496639065,-500.0,0.00017973,2]
[394363429,1763496639074,-500.0,0.00017973,2]
[394363430,1763496639083,-500.0,0.00017973,2]
[394363431,1763496639093,-500.0,0.00017973,2]
[394363432,1763496639103,-500.0,0.00017973,2]
[394363433,1763496639112,-500.0,0.00017973,2]
[394363434,1763496639122,-500.0,0.00017973,2]
[394363435,1763496639131,-500.0,0.00017973,2]
[394363436,1763496639142,-500.0,0.00017973,2]
[394363437,1763496639151,-500.0,0.00017976,2]
[394363438,1763496639162,-284.45925828,0.00017982,2]
[394363439,1763496639173,-151.0,0.0001799,2]
[394363440,1763496639182,-151.0,0.0001799,2]
[394363441,1763496639193,-151.0,0.0001799,2]
[394363442,1763496639202,-151.0,0.0001799,2]
[394363443,1763496639212,-151.0,0.0001799,2]
[394363444,1763496639222,-151.0,0.0001799,2]
[394363445,1763496639232,-151.0,0.0001799,2]
[394363446,1763496639242,-151.0,0.0001799,2]
[394363447,1763496639251,-151.0,0.0001799,2]
[394363448,1763496639262,-151.0,0.0001799,2]
[394363449,1763496639272,-282.718965,0.0001799,2]
[394363450,1763496639358,-282.718965,0.0001799,2]
[394363451,1763496639368,-282.718965,0.0001799,2]
[394363452,1763496639377,-282.718965,0.0001799,2]
[394363453,1763496639387,-151.0,0.0001799,2]
[394363454,1763496639396,-664.05556,0.0001799,2]
[394363455,1763496639406,-664.05556,0.0001799,2]
[394363456,1763496639417,-664.05556,0.0001799,2]
[394363457,1763496639426,-664.05556,0.0001799,2]
[394363458,1763496639436,-884.448283,0.0001799,2]
[394363459,1763496639446,-884.448283,0.0001799,2]
[394363461,1763496639455,-884.448283,0.0001799,2]
[394363463,1763496639464,-884.448283,0.0001799,2]
[394363465,1763496639473,-37915.27052548,0.00018,2]
[394363467,1763496639483,-155.189006,0.00018,2]
[394363469,1763496639492,-3206.10533184,0.00018009,2]
[394363470,1763496639501,-1010.34831849,0.00018021,2]
[394363472,1763496639511,-1000.0,0.00018021,2]
[394363474,1763496639520,-1000.0,0.00018021,2]
[394363476,1763496639530,-1000.0,0.00018021,2]
[394363478,1763496639539,-1000.0,0.00018021,2]
[394363480,1763496639548,-1000.0,0.00018021,2]
[394363482,1763496639558,-1000.0,0.00018021,2]
[394363484,1763496639568,-151.0,0.000181,2]
[394363485,1763496639577,-500.0,0.0001825,2]
[394363487,1763496639586,-260.0,0.00018475,2]
[394363489,1763496639596,-1101.83449188,0.000185,2]
[394363490,1763496639606,-225.18697532,0.00018515,2]
[394363491,1763496639615,-508.45259022,0.00018521,2]
[394363493,1763496639624,-1000.0,0.00018521,2]
[394363495,1763496639633,-494.65048411,0.00018521,2]
[394363496,1763496639643,-1000.0,0.00018521,2]
[394363497,1763496639652,-502.24962682,0.00018521,2]
[394363498,1763496639662,-500.0,0.00018521,2]
[394363499,1763496639671,-1000.0,0.00018521,2]
[394363501,1763496639680,-618.8649075,0.00018521,2]
[394363503,1763496639689,-1000.0,0.00018521,2]
[394363505,1763496639698,-1000.0,0.00018521,2]
[394363507,1763496639707,-1006.37112499,0.00018521,2]
[394363509,1763496639716,-1000.0,0.00018521,2]
[394363511,1763496639726,-417.17834268,0.00018521,2]
[394363513,1763496639735,-520.65947668,0.00018521,2]
[394363515,1763496639744,-1000.0,0.00018521,2]
[394363517,1763496639754,-1063.81562093,0.00018521,2]
[394363518,1763496639763,-500.0,0.00018521,2]
[394363520,1763496639772,-335.35906938,0.00018521,2]
[394363522,1763496639782,-1000.0,0.00018521,2]
[394363524,1763496639791,-1000.96105219,0.00018521,2]
[394363526,1763496639801,-1000.0,0.00018521,2]
[394363528,1763496639810,-1025.66079462,0.00018521,2]
[394363530,1763496639819,-617.19245736,0.00018521,2]
[394363531,1763496639829,-1000.0,0.00018521,2]
[394363532,1763496639838,-502.2241441,0.00018521,2]
[394363533,1763496639847,-922.77259646,0.00018521,2]
[394363534,1763496639856,-151.0,0.00018521,2]
[394363535,1763496639866,-151.0,0.00018521,2]
[394363536,1763496639875,-235.545262,0.00018521,2]
[394363537,1763496639884,-151.0,0.00018521,2]
[394363538,1763496639893,-282.718965,0.00018521,2]
[394363539,1763496639903,-282.718965,0.00018521,2]
[394363540,1763496639912,-282.718965,0.00018521,2]
[394363541,1763496639921,-282.718965,0.00018521,2]
[394363542,1763496639931,-151.864517,0.00018521,2]
[394363543,1763496639940,-664.05556,0.00018521,2]
[394363544,1763496639950,-664.05556,0.00018521,2]
[394363545,1763496639959,-664.05556,0.00018521,2]
[394363546,1763496639969,-664.05556,0.00018521,2]
[394363547,1763496639978,-884.448283,0.00018521,2]
[394363548,1763496639991,-884.448283,0.00018521,2]
[394363549,1763496640001,-884.448283,0.00018521,2]
[394363550,1763496640011,-884.448283,0.00018521,2]
[394363551,1763496640020,-500.0,0.00018524,2]
[394363552,1763496640030,-151.0,0.00018545,2]
[394363553,1763496640040,-151.0,0.00018545,2]
[394363554,1763496640049,-255.517841,0.00018545,2]
[394363555,1763496640059,-151.0,0.00018545,2]
[394363556,1763496640069,-151.0,0.00018545,2]
[394363557,1763496640078,-151.0,0.00018545,2]
[394363558,1763496640087,-420.0,0.00018555,2]
[394363559,1763496640096,-1500.0,0.00018568,2]
[394363560,1763496640106,-1500.0,0.00018568,2]
[394363561,1763496640115,-1500.0,0.00018568,2]
[394363562,1763496640125,-427.09202475,0.00018568,2]
[394363563,1763496640134,-1500.0,0.00018568,2]
[394363564,1763496640144,-500.0,0.00018573,2]
[394363565,1763496640153,-500.0,0.00018573,2]
[394363566,1763496640165,-500.0,0.00018573,2]
[394363567,1763496640174,-500.0,0.00018573,2]
[394363568,1763496640183,-1680.0,0.00018647,2]
[394363569,1763496640193,-2163.55864563,0.00018659,2]
[394363570,1763496640202,-357.81430756,0.00018722,2]
[394363571,1763496640212,-388.9,0.00018779,3]
[394363572,1763496640221,-500.0,0.00018798,2]
[394363573,1763496640230,-251.86194206,0.00019,2]
[394363574,1763496640240,-876.0,0.00019015,2]
[394363575,1763496640250,-360.0,0.00019023,2]
[394363576,1763496640259,-233.51889341,0.00019063,2]
[394363577,1763496640268,-974.15988348,0.00019068,2]
[394363578,1763496640278,-500.0,0.00019068,2]
[394363579,1763496640288,-1500.0,0.00019068,2]
[394363580,1763496640297,-1021.17956697,0.00019068,2]
[394363581,1763496640306,-477.70222016,0.00019068,2]
[394363582,1763496640316,-1000.0,0.00019068,2]
[394363583,1763496640325,-1500.0,0.00019068,2]
[394363584,1763496640334,-524.32488412,0.00019068,2]
[394363585,1763496640344,-1500.0,0.00019068,2]
[394363586,1763496640353,-335.39670131,0.00019072,2]
[394363587,1763496640362,-2000.0,0.00019116,2]
[394363588,1763496640371,-2000.0,0.00019116,2]
[394363589,1763496640380,-1009.18458915,0.00019121,2]
[394363590,1763496640389,-507.59735831,0.00019121,2]
[394363591,1763496640399,-1253.819536,0.00019178,2]
[394363592,1763496640408,-1253.819536,0.00019178,2]
[394363593,1763496640418,-1253.819536,0.00019178,2]
[394363594,1763496640427,-1253.819536,0.00019178,2]
[394363595,1763496640436,-1253.819536,0.00019178,2]
[394363596,1763496640446,-1253.819536,0.00019178,2]
[394363597,1763496640455,-1253.819536,0.00019178,2]
[394363598,1763496640465,-1253.819536,0.00019178,2]
[394363599,1763496640474,-500.93019027,0.00019194,2]
[394363600,1763496640484,-500.0,0.00019194,2]
[394363601,1763496640493,-500.0,0.00019194,2]
[394363602,1763496640503,-500.0,0.00019194,2]
[394363603,1763496640512,-151.0,0.000192,2]
[394363604,1763496640522,-159.36316277,0.00019239,2]
[394363605,1763496640531,-158.95978259,0.00019239,2]
[394363606,1763496640541,-179.66978308,0.00019244,2]
[394363607,1763496640551,-177.0,0.0001936,2]
[394363608,1763496640560,-500.0,0.00019371,2]
[394363609,1763496640569,-500.0,0.00019371,2]
[394363610,1763496640579,-500.0,0.00019371,2]
[394363611,1763496640588,-500.0,0.00019371,2]
[394363612,1763496640597,-344.69421403,0.00019371,2]
[394363613,1763496640606,-500.0,0.00019371,2]
[394363614,1763496640616,-500.0,0.00019371,2]
[394363615,1763496640625,-517.48739709,0.00019371,2]
[394363616,1763496640634,-460.0,0.00019571,2]
[394363617,1763496640644,-242.15909246,0.00019611,2]
[394363618,1763496640653,-282.718965,0.00019616,7]
[394363619,1763496640663,-282.718965,0.00019616,7]
[394363620,1763496640672,-282.718965,0.00019616,7]
[394363621,1763496640682,-282.718965,0.00019616,7]
[394363622,1763496640691,-1253.819536,0.00019616,7]
[394363623,1763496640700,-1253.819536,0.00019616,7]
[394363624,1763496640710,-1253.819536,0.00019616,7]
[394363625,1763496640719,-1253.819536,0.00019616,7]
[394363626,1763496640729,-2000.0,0.00019616,2]
[394363627,1763496640738,-2000.0,0.00019616,2]
[394363628,1763496640748,-2500.0,0.00019664,2]
[394363629,1763496640757,-2500.0,0.00019664,2]
[394363630,1763496640767,-720.0,0.00019677,2]
[394363631,1763496640776,-151.0,0.000197,2]
[394363632,1763496640785,-1000.0,0.00019742,2]
[394363633,1763496640794,-1000.0,0.00019742,2]
[394363634,1763496640804,-154.17873,0.00019748,7]
[394363635,1763496640813,-213.518786,0.00019748,7]
[394363636,1763496640822,-664.05556,0.00019748,7]
[394363637,1763496640831,-664.05556,0.00019748,7]
[394363638,1763496640841,-664.05556,0.00019748,7]
[394363639,1763496640850,-664.05556,0.00019748,7]
[394363640,1763496640859,-884.448283,0.00019748,7]
[394363641,1763496640869,-884.448283,0.00019748,7]
[394363642,1763496640879,-884.448283,0.00019748,7]
[394363643,1763496640889,-884.448283,0.00019748,7]
[394363644,1763496640899,-151.0,0.00019751,7]
[394363645,1763496640909,-151.0,0.00019751,7]
[394363646,1763496640918,-250.418572,0.00019751,7]
[394363647,1763496640927,-151.0,0.00019751,7]
[394363648,1763496640937,-151.0,0.00019751,7]
[394363649,1763496641014,-194.912105,0.00019751,7]
[394363650,1763496641023,-11125.3368335,0.00019751,2]
[394363651,1763496641033,-1000.0,0.00019919,2]
[394363652,1763496641043,-1000.0,0.00019919,2]
[394363653,1763496641053,-1000.0,0.00019919,2]
[394363654,1763496641063,-1000.0,0.00019919,2]
[394363655,1763496641072,-1000.0,0.00019919,2]
[394363656,1763496641081,-500.71671824,0.00019973,2]
[394363657,1763496641090,-500.0,0.00019973,2]
[394363658,1763496641100,-470.46085505,0.00019973,2]
[394363659,1763496641109,-500.0,0.00019973,2]
[394363660,1763496641118,-500.0,0.00019973,2]
[394363661,1763496641127,-500.0,0.00019973,2]
[394363662,1763496641137,-159.36727858,0.00019973,2]
[394363663,1763496641146,-500.0,0.00019973,2]
[394363664,1763496641155,-512.338289,0.00019973,2]
[394363665,1763496641164,-500.0,0.00019973,2]
[394363666,1763496641173,-500.0,0.00019973,2]
[394363667,1763496641182,-500.0,0.00019973,2]
[394363668,1763496641192,-500.0,0.00019973,2]
[394363669,1763496641201,-486.46322338,0.00019973,2]
[394363670,1763496641210,-500.0,0.00019973,2]
[394363671,1763496641219,-456.80411814,0.00019973,2]
[394363672,1763496641229,-500.0,0.00019973,2]
[394363673,1763496641238,-500.0,0.00019973,2]
[394363674,1763496641247,-162.83966597,0.00019973,2]
[394363675,1763496641257,-500.0,0.00019973,2]
[394363676,1763496641267,-500.0,0.00019973,2]
[394363677,1763496641276,-500.0,0.00019973,2]
[394363678,1763496641285,-500.0,0.00019973,2]
[394363679,1763496641294,-500.0,0.00019973,2]
[394363680,1763496641304,-508.44679136,0.00019973,2]
[394363681,1763496641313,-500.0,0.00019973,2]
[394363682,1763496641322,-500.0,0.00019973,2]
[394363683,1763496641331,-150.39979233,0.0002,2]
[394363684,1763496641340,-416.32524021,0.0002,2]
[394363685,1763496641350,-14430.75953588,0.0002,2]
[394363686,1763496641359,-369.4536102,0.0002,2]
[394363687,1763496641368,-23000.0,0.0002,2]
[394363688,1763496641377,-201.47407487,0.0002,2]
[394363689,1763496641386,-400.0,0.0002,2]
[394363690,1763496641395,-151.0,0.0002,7]
[394363691,1763496641404,-282.718965,0.0002,7]
[394363692,1763496641412,-282.718965,0.0002,7]
[394363693,1763496641422,-282.718965,0.0002,7]
[394363694,1763496641431,-282.718965,0.0002,7]
[394363695,1763496641441,-664.05556,0.0002,7]
[394363696,1763496641451,-664.05556,0.0002,7]
[394363697,1763496641461,-664.05556,0.0002,7]
[394363698,1763496641470,-664.05556,0.0002,7]
[394363699,1763496641479,-884.448283,0.0002,7]
[394363700,1763496641488,-884.448283,0.0002,7]
[394363701,1763496641497,-884.448283,0.0002,7]
[394363702,1763496641506,-884.448283,0.0002,7]
[394363703,1763496641516,-1253.819536,0.0002,7]
[394363704,1763496641525,-1253.819536,0.0002,7]
[394363705,1763496641534,-1253.819536,0.0002,7]
[394363706,1763496641543,-1253.819536,0.0002,7]
[394363707,1763496641553,-2000.0,0.0002,7]
[394363708,1763496641562,-419.05267015,0.00020015,2]
[394363709,1763496641571,-151.0,0.000201,4]
[394363710,1763496641580,-573.3626246,0.00020118,2]
[394363711,1763496641589,-251.11897888,0.00020159,2]
[394363712,1763496641598,-2500.0,0.00020164,2]
[394363713,1763496641608,-360.91942769,0.00020164,2]
[394363714,1763496641617,-634.948421,0.00020187,2]
[394363715,1763496641626,-151.0,0.000202,3]
[394363716,1763496641636,-1007.35539085,0.00020212,2]
[394363717,1763496641645,-3000.0,0.00020212,2]
[394363718,1763496641655,-587.0,0.00020266,2]
[394363719,1763496641664,-500.0,0.0002029,2]
[394363720,1763496641673,-500.0,0.0002029,2]
[394363721,1763496641683,-644.0657536,0.00020311,2]
[394363722,1763496641692,-151.0,0.000204,4]
[394363723,1763496641701,-161.96138375,0.00020407,5]
[394363724,1763496641712,-1500.0,0.00020466,2]
[394363725,1763496641721,-1500.0,0.00020466,2]
[394363726,1763496641731,-1500.0,0.00020466,2]
[394363727,1763496641741,-1365.81138896,0.00020466,2]
[394363728,1763496641750,-500.0,0.00020466,2]
[394363729,1763496641759,-2351.0,0.00020468,2]
[394363730,1763496641769,-151.0,0.00020512,7]
[394363731,1763496641778,-151.0,0.00020512,7]
[394363732,1763496641788,-151.0,0.00020512,7]
[394363733,1763496641798,-1000.0,0.00020521,2]
[394363734,1763496641808,-501.5573906,0.00020521,2]
[394363735,1763496641818,-1000.0,0.00020521,2]
[394363736,1763496641827,-1000.0,0.00020521,2]
[394363737,1763496641836,-1000.0,0.00020521,2]
[394363738,1763496641846,-1000.0,0.00020521,2]
[394363739,1763496641857,-1000.0,0.00020521,2]
[394363740,1763496641866,-309.21965085,0.00020521,2]
[394363741,1763496641875,-500.0,0.00020521,2]
[394363742,1763496641885,-1000.0,0.00020521,2]
[394363743,1763496641894,-1000.0,0.00020521,2]
[394363744,1763496641903,-1000.0,0.00020521,2]
[394363745,1763496641913,-1000.63330727,0.00020521,2]
[394363746,1763496641922,-1000.0,0.00020521,2]
[394363747,1763496641931,-502.35121388,0.00020521,2]
[394363748,1763496641941,-500.0,0.0002053,2]
[394363749,1763496641950,-500.0,0.0002053,2]
[394363750,1763496641960,-209.29942895,0.00020531,2]
[394363751,1763496641969,-546.60387,0.00020548,7]
[394363752,1763496641979,-546.60387,0.00020548,7]
[394363753,1763496641992,-546.60387,0.00020548,7]
[394363754,1763496642001,-546.60387,0.00020548,7]
[394363755,1763496642010,-546.60387,0.00020548,7]
[394363756,1763496642019,-546.60387,0.00020548,7]
[394363757,1763496642029,-546.60387,0.00020548,7]
[394363758,1763496642038,-546.60387,0.00020548,7]
[394363759,1763496642047,-546.60387,0.00020548,7]
[394363760,1763496642058,-546.60387,0.00020548,7]
[394363761,1763496642067,-546.60387,0.00020548,7]
[394363762,1763496642076,-546.60387,0.00020548,7]
[394363763,1763496642086,-546.60387,0.00020548,7]
[394363764,1763496642095,-546.60387,0.00020548,7]
[394363765,1763496642105,-546.60387,0.00020548,7]
[394363766,1763496642115,-546.60387,0.00020548,7]
[394363767,1763496642124,-546.60387,0.00020548,7]
[394363768,1763496642134,-546.60387,0.00020548,7]
[394363769,1763496642143,-546.60387,0.00020548,7]
[394363770,1763496642152,-546.603865,0.00020548,7]
[394363771,1763496642161,-500.0,0.00020689,2]
[394363772,1763496642170,-500.0,0.00020689,2]
[394363773,1763496642180,-500.0,0.00020689,2]
[394363774,1763496642189,-500.0,0.00020689,2]
[394363775,1763496642198,-563.40642092,0.00020689,2]
[394363776,1763496642207,-260.4103811,0.00020707,2]
[394363777,1763496642216,-3000.0,0.00020712,2]
[394363778,1763496642225,-3500.0,0.0002076,2]
[394363779,1763496642234,-720.0,0.00020972,2]
[394363780,1763496642243,-720.0,0.00020991,2]
[394363781,1763496642252,-244.8276902,0.00020993,2]
[394363782,1763496642262,-1500.0,0.00021014,2]
[394363783,1763496642271,-1145.84322088,0.00021014,2]
[394363784,1763496642280,-550.93325901,0.00021014,2]
[394363785,1763496642290,-161.96138375,0.00021038,5]
[394363786,1763496642299,-1253.819536,0.00021068,7]
[394363787,1763496642309,-1253.819536,0.00021068,7]
[394363788,1763496642318,-1253.819536,0.00021068,7]
[394363789,1763496642327,-1253.819532,0.00021068,7]
[394363791,1763496642336,-503.53043094,0.00021068,2]
[394363792,1763496642346,-220.05087096,0.00021068,2]
[394363793,1763496642356,-503.10802332,0.00021068,2]
[394363794,1763496642365,-297.24115974,0.00021068,2]
[394363795,1763496642374,-1094.78001161,0.00021068,2]
[394363796,1763496642384,-500.0,0.00021068,2]
[394363797,1763496642394,-1512.19074474,0.00021068,2]
[394363798,1763496642403,-1500.0,0.00021068,2]
[394363799,1763496642413,-1500.0,0.00021068,2]
[394363800,1763496642422,-1004.79673771,0.00021068,2]
[394363801,1763496642431,-1000.0,0.00021078,2]
[394363802,1763496642440,-664.05556,0.00021078,7]
[394363803,1763496642449,-664.05556,0.00021078,7]
[394363804,1763496642520,-664.05556,0.00021078,7]
[394363805,1763496642530,-664.055551,0.00021078,7]
[394363806,1763496642539,-884.448283,0.00021078,7]
[394363807,1763496642549,-884.448283,0.00021078,7]
[394363808,1763496642558,-884.448283,0.00021078,7]
[394363809,1763496642567,-884.448281,0.00021078,7]
[394363810,1763496642576,-255.0,0.00021079,2]
[394363811,1763496642585,-255.0,0.00021188,2]
[394363813,1763496642594,-450.50637907,0.000212,2]
[394363815,1763496642604,-282.718965,0.00021205,7]
[394363817,1763496642613,-282.718965,0.00021205,7]
[394363819,1763496642622,-282.718965,0.00021205,7]
[394363821,1763496642632,-282.718963,0.00021205,7]
[394363823,1763496642641,-720.0,0.00021206,2]
[394363824,1763496642650,-720.0,0.00021209,2]
[394363826,1763496642659,-720.0,0.00021226,2]
[394363827,1763496642668,-172.37838401,0.00021237,2]
[394363828,1763496642676,-265.93893514,0.00021237,2]
[394363829,1763496642685,-1000.0,0.00021237,2]
[394363830,1763496642694,-1000.0,0.00021237,2]
[394363831,1763496642703,-270.0455652,0.00021255,2]
[394363832,1763496642712,-151.0,0.0002126,7]
[394363833,1763496642722,-3500.0,0.0002126,2]
[394363834,1763496642731,-10000.0,0.0002127,2]
[394363835,1763496642741,-151.0,0.0002127,7]
[394363836,1763496642750,-151.0,0.0002127,7]
[394363837,1763496642760,-151.0,0.0002127,7]
[394363838,1763496642770,-1478.88298797,0.00021308,2]
[394363839,1763496642779,-204.0,0.0002136,2]
[394363840,1763496642789,-720.0,0.00021443,2]
[394363841,1763496642798,-438.45545539,0.00021616,2]
[394363842,1763496642807,-1000.84319788,0.00021626,2]
[394363843,1763496642817,-255.0,0.00021647,2]
[394363844,1763496642827,-720.0,0.0002167,2]
[394363845,1763496642836,-720.0,0.0002172,2]
[394363846,1763496642846,-500.0,0.00021785,2]
[394363847,1763496642856,-1502.28352117,0.00021785,2]
[394363849,1763496642866,-286.74177927,0.00021803,2]
[394363850,1763496642876,-255.0,0.00021807,2]
[394363851,1763496642886,-815.96891154,0.00021808,2]
[394363852,1763496642896,-11125.3368335,0.00021883,2]
[394363853,1763496642906,-840.3002891,0.00021918,7]
[394363855,1763496642915,-361.477031,0.00021918,7]
[394363857,1763496642924,-361.477031,0.00021918,7]
[394363858,1763496642933,-361.477031,0.00021918,7]
[394363860,1763496642943,-361.477031,0.00021918,7]
[394363862,1763496642952,-361.477031,0.00021918,7]
[394363863,1763496642961,-361.477031,0.00021918,7]